bitfinex/quotes_SOLUSD_20250207
["timestamp","ask_amount","ask_price","bid_price","bid_amount"]
[1738959986059,0.0001,191.99,191.96,5.2094]
[1738959986656,0.0001,191.99,191.96,317.2094]
[1738959988753,25.24343775,191.98,191.96,5.2094]
[1738959989351,0.25098,191.96,191.89,0.063]
[1738959989540,25.24343775,191.9,191.89,0.063]
[1738959991096,26.05475767,191.9,191.89,0.063]
[1738959991570,25.24343775,191.9,191.89,0.063]
[1738959992869,31.26575767,191.9,191.89,0.063]
[1738959994269,31.51673767,191.9,191.89,0.063]
[1738959994861,31.26575767,191.9,191.89,0.063]
[1738959995185,25.24343775,191.9,191.89,0.063]
[1738959995548,25.24343775,191.91,191.89,0.063]
[1738959995757,25.24343775,191.9,191.89,0.063]
[1738959996086,25.24343775,191.91,191.89,0.063]
[1738959996282,0.25098,191.97,191.89,0.063]
[1738959996283,25.24343775,191.93,191.89,0.063]
[1738959996447,25.24343775,191.92,191.89,0.063]
[1738959996654,25.24343775,191.94,191.89,0.063]
[1738959997476,25.24343775,191.93,191.89,0.063]
[1738959998656,25.24343775,191.94,191.89,0.063]
[1738959998992,25.24343775,191.97,191.9,25.24343775]
[1738959999193,25.24353775,191.99,191.92,25.24343775]
[1738959999357,25.24353775,191.99,191.89,0.063]
[1738959999358,0.0001,191.99,191.94,337.24343775]
[1738959999685,0.0001,191.99,191.94,312.0]
[1738960000049,25.24353775,191.99,191.94,312.0]
[1738960001291,0.0001,191.99,191.94,312.0]
[1738960001466,0.0001,191.99,191.95,5.2096]
[1738960001666,25.24353775,191.99,191.95,5.2096]
[1738960002585,0.0001,191.99,191.95,5.2096]
[1738960003388,0.0001,191.99,191.94,5.2099]
[1738960003575,0.0001,191.99,191.94,30.45333775]
[1738960004491,0.0001,191.99,191.96,25.24343775]
[1738960004674,0.0001,191.99,191.97,25.24343775]
[1738960005287,0.0001,191.99,191.96,25.24343775]
[1738960005492,0.0001,191.99,191.95,25.24343775]
[1738960005679,25.24343775,191.98,191.94,5.2099]
[1738960006293,25.24343775,191.98,191.94,317.2099]
[1738960007000,25.24343775,191.95,191.92,5.2102]
[1738960007181,25.24343775,191.93,191.9,5.211]
[1738960007493,25.24343775,191.96,191.9,30.45443775]
[1738960007650,0.0001,191.99,191.92,25.24343775]
[1738960007651,25.24353775,191.99,191.92,25.24343775]
[1738960007859,0.0001,191.99,191.93,25.24343775]
[1738960008587,0.0001,191.99,191.94,25.24343775]
[1738960008757,0.0001,191.99,191.95,5.2096]
[1738960009573,0.0001,191.99,191.96,25.24343775]
[1738960009757,0.0001,191.99,191.97,25.24343775]
[1738960009955,0.0001,191.99,191.98,312.0]
[1738960010981,0.0001,191.99,191.98,317.2088]
[1738960012276,25.24353775,191.99,191.92,13.0261]
[1738960012582,25.24343775,191.97,191.92,13.0261]
[1738960012766,25.24343775,191.98,191.92,38.26953775]
[1738960013254,25.24343775,191.98,191.93,5.2102]
[1738960014269,25.24353775,191.99,191.93,5.2102]
[1738960014457,25.24353775,191.99,191.93,30.45363775]
[1738960015282,25.24353775,191.99,191.94,312.0]
[1738960015982,25.24353775,191.99,191.95,5.2096]
[1738960016474,0.0001,191.99,191.95,5.2096]
[1738960016682,0.0001,191.99,191.95,30.45303775]
[1738960017062,0.0001,191.99,191.96,25.24343775]
[1738960017263,0.0001,191.99,191.97,25.24343775]
[1738960017563,0.0001,191.99,191.96,25.24343775]
[1738960018184,0.0001,191.99,191.96,5.2094]
[1738960019373,0.0001,191.99,191.96,30.45283775]
[1738960019578,0.0001,191.99,191.97,312.0]
[1738960020092,0.0001,191.99,191.98,25.24343775]
[1738960020268,0.0001,191.99,191.98,30.45223775]
[1738960021802,0.0001,191.99,191.98,5.2088]
[1738960022285,0.0001,191.99,191.96,25.24343775]
[1738960022483,0.0001,191.99,191.98,25.24343775]
[1738960023079,0.0001,191.99,191.98,337.24343775]
[1738960024083,0.0001,191.99,191.98,342.45223775]
[1738960024289,0.0001,191.99,191.98,317.2088]
[1738960024794,0.0001,191.99,191.98,342.45223775]
[1738960026270,0.0001,191.99,191.98,317.2088]
[1738960029171,0.0001,191.99,191.98,342.45223775]
[1738960030269,25.27343775,192.09,191.98,368.88618628]
[1738960030465,25.27343775,192.09,192.03,25.24343775]
[1738960030870,0.03,192.09,192.06,25.24343775]
[1738960031072,0.03,192.09,192.07,25.24343775]
[1738960031269,0.03,192.09,192.06,25.24343775]
[1738960031465,25.27343775,192.09,192.02,25.24343775]
[1738960031682,0.03,192.09,192.04,25.24343775]
[1738960031971,0.03,192.09,192.07,25.24343775]
[1738960032171,0.03,192.09,192.06,25.24343775]
[1738960032974,0.03,192.09,192.08,25.24343775]
[1738960033178,0.03,192.13,192.08,25.24343775]
[1738960033179,0.03,192.13,192.12,20.0]
[1738960033383,0.03,192.19,192.13,13.41184853]
[1738960033577,0.03,192.19,192.12,312.0]
[1738960033780,7.335,192.16,192.02,5.2077]
[1738960033981,0.81131992,192.15,192.02,5.2077]
[1738960034488,31.57843775,192.16,192.09,25.24343775]
[1738960035603,25.24343775,192.1,192.03,5.2075]
[1738960035807,25.24343775,192.07,192.02,5.2077]
[1738960036085,0.81131992,192.13,192.02,5.2077]
[1738960036086,25.24343775,192.08,192.02,5.2077]
[1738960036307,25.24343775,192.07,192.02,5.2077]
[1738960036471,25.24343775,192.06,192.02,5.2077]
[1738960036674,25.24343775,192.03,192.01,373.84]
[1738960036878,25.24343775,192.03,192.01,61.84]
[1738960037074,25.24343775,192.02,192.01,61.84]
[1738960037280,0.81131992,192.1,192.01,61.84]
[1738960037281,25.24343775,192.04,192.01,61.84]
[1738960037497,5.2062,192.08,192.01,61.84]
[1738960037498,25.24343775,192.03,192.01,61.84]
[1738960037695,0.81131992,192.07,192.01,61.84]
[1738960037696,25.24343775,192.02,192.01,61.84]
[1738960038015,25.24343775,192.05,192.01,61.84]
[1738960038175,25.24343775,192.03,192.01,61.84]
[1738960039096,25.24343775,192.06,192.01,67.0479]
[1738960039277,25.24343775,192.09,192.02,25.24343775]
[1738960039793,7.335,192.16,192.04,25.24343775]
[1738960039794,25.24343775,192.11,192.04,25.24343775]
[1738960040478,25.24343775,192.12,192.05,25.24343775]
[1738960040897,25.24343775,192.12,192.06,5.2067]
[1738960041100,25.24343775,192.15,192.08,25.24343775]
[1738960041276,25.24343775,192.13,192.06,30.45013775]
[1738960041481,25.24343775,192.13,192.07,25.24343775]
[1738960042091,25.24343775,192.14,192.08,5.2061]
[1738960042681,25.24343775,192.14,192.08,30.44953775]
[1738960042875,25.24343775,192.16,192.09,25.24343775]
[1738960043778,25.24343775,192.16,192.09,337.24343775]
[1738960043977,25.24343775,192.15,192.09,312.0]
[1738960044393,25.24343775,192.15,192.1,5.2056]
[1738960045597,0.03,192.16,192.1,30.44903775]
[1738960045998,25.24343775,192.15,192.1,5.2056]
[1738960048003,25.24343775,192.11,192.09,312.0]
[1738960048186,25.24343775,192.1,192.02,0.063]
[1738960048392,25.24343775,192.04,192.02,0.063]
[1738960048703,25.24343775,192.05,192.02,0.063]
[1738960049009,25.24343775,192.07,192.02,5.2707]
[1738960049178,25.24343775,192.08,192.02,5.2707]
[1738960050098,25.24343775,192.09,192.02,30.51413775]
[1738960050779,25.24343775,192.08,192.02,5.2707]
[1738960051195,25.24343775,192.08,192.02,317.2707]
[1738960051396,25.24343775,192.03,192.02,0.063]
[1738960054483,25.24343775,192.07,192.02,0.063]
[1738960054810,25.24343775,192.03,192.02,0.063]
[1738960056084,32.26225767,192.03,192.02,0.063]
[1738960056286,32.51323767,192.03,192.02,0.063]
[1738960056484,32.51323767,192.03,191.98,0.063]
[1738960056485,25.24343775,191.99,191.98,0.063]
[1738960056805,0.25098,191.98,191.94,0.063]
[1738960056984,25.24343775,191.95,191.94,0.063]
[1738960057504,30.45303775,191.95,191.94,0.063]
[1738960058296,31.26435767,191.95,191.94,0.063]
[1738960060108,30.45303775,191.95,191.94,0.063]
[1738960060699,31.26435767,191.95,191.94,0.063]
[1738960061186,20.0,191.92,191.89,0.063]
[1738960061403,25.24343775,191.9,191.89,0.063]
[1738960061804,25.24343775,191.92,191.89,0.063]
[1738960062109,25.24343775,191.94,191.89,0.063]
[1738960062288,25.24343775,191.96,191.89,25.30643775]
[1738960062489,25.24343775,191.99,191.92,25.24343775]
[1738960062810,25.24343775,191.98,191.92,25.24343775]
[1738960063007,25.24343775,191.98,191.91,25.24343775]
[1738960063400,25.24343775,192.01,191.94,25.24343775]
[1738960063716,25.24343775,192.0,191.93,25.24343775]
[1738960063900,25.24343775,192.0,191.94,5.2099]
[1738960064708,25.24343775,192.01,191.94,30.45333775]
[1738960065009,25.24343775,192.06,191.99,25.24343775]
[1738960066109,25.24343775,192.07,192.0,30.45173775]
[1738960066619,25.24343775,192.1,192.03,25.24343775]
[1738960067103,25.24343775,192.09,192.03,25.24343775]
[1738960067719,25.24343775,192.09,192.03,342.45083775]
[1738960068091,25.24343775,192.09,192.03,317.2074]
[1738960068721,0.03,192.13,192.03,317.2074]
[1738960068916,25.24343775,192.04,192.0,6.6306]
[1738960069301,25.24343775,192.03,192.0,6.6306]
[1738960069499,25.24343775,192.02,191.97,5.2089]
[1738960069803,25.24343775,192.01,191.97,5.2089]
[1738960070327,25.24343775,192.02,191.97,5.2089]
[1738960070623,25.24343775,192.03,191.97,5.2089]
[1738960071012,25.24343775,192.04,191.97,25.24343775]
[1738960071202,25.24343775,192.04,191.98,25.24343775]
[1738960071811,25.24343775,192.04,191.98,337.24343775]
[1738960072118,25.24343775,192.04,191.99,5.2086]
[1738960072418,25.24343775,192.03,191.98,312.0]
[1738960072624,25.24343775,192.02,191.97,5.2088]
[1738960072827,25.24343775,191.98,191.95,6.6306]
[1738960073018,5.2072,192.04,191.93,1.5218]
[1738960073019,25.24343775,191.97,191.93,1.5218]
[1738960073401,25.24343775,191.97,191.93,6.7318]
[1738960073820,25.24343775,191.95,191.91,5.2107]
[1738960074209,25.24343775,191.95,191.9,6.1991]
[1738960074210,25.24343775,191.93,191.9,6.1991]
[1738960074423,25.24343775,191.92,191.89,0.063]
[1738960074626,25.24343775,191.91,191.89,0.063]
[1738960075601,25.24343775,191.9,191.89,0.063]
[1738960077025,25.49441775,191.9,191.89,0.063]
[1738960077221,26.30573767,191.9,191.89,0.063]
[1738960078033,31.51673767,191.9,191.89,0.063]
[1738960078521,31.26575767,191.9,191.89,0.063]
[1738960078739,31.26679513,191.9,191.89,0.063]
[1738960079041,47.04449327,191.9,191.89,0.063]
[1738960079629,48.04449327,191.9,191.89,0.063]
[1738960080414,2.25098,191.89,191.86,0.063]
[1738960080609,41.27315335,191.87,191.86,0.063]
[1738960081026,41.02217335,191.87,191.86,0.063]
[1738960082329,46.23397335,191.87,191.86,0.063]
[1738960082831,41.02217335,191.87,191.86,0.063]
[1738960083045,41.02217335,191.89,191.86,0.063]
[1738960083420,41.02217335,191.88,191.86,0.063]
[1738960084530,41.02217335,191.87,191.86,0.063]
[1738960085340,41.83349327,191.87,191.86,0.063]
[1738960085813,47.04529327,191.87,191.86,0.063]
[1738960086135,46.23397335,191.87,191.86,0.063]
[1738960086732,41.02217335,191.87,191.86,0.063]
[1738960087731,46.23397335,191.87,191.86,0.063]
[1738960087913,47.04529327,191.87,191.86,0.063]
[1738960089336,41.02217335,191.91,191.86,0.063]
[1738960089518,41.02217335,191.93,191.86,41.08517335]
[1738960089721,41.02217335,191.97,191.9,41.02217335]
[1738960089929,41.02217335,191.96,191.89,41.02217335]
[1738960090519,0.25098,192.01,191.87,6.0986]
[1738960090520,41.02217335,191.92,191.87,6.0986]
[1738960090839,41.02217335,191.9,191.87,6.0986]
[1738960091037,41.02217335,191.89,191.86,0.063]
[1738960091218,1.06229992,191.95,191.86,0.063]
[1738960091219,41.02217335,191.87,191.86,0.063]
[1738960095348,46.23397335,191.87,191.86,0.063]
[1738960096029,48.29627327,191.87,191.86,0.063]
[1738960097815,48.29627327,191.87,191.83,0.063]
[1738960097816,21.25098,191.84,191.83,0.063]
[1738960098122,21.25098,191.84,191.72,1.5367]
[1738960098123,2.25098,191.83,191.72,1.5367]
[1738960098319,20.0,191.81,191.72,1.5367]
[1738960098631,41.06491408,191.79,191.72,1.5367]
[1738960098830,41.06491408,191.79,191.71,6.2769]
[1738960099229,30.4847221,191.79,191.71,6.2769]
[1738960099718,30.4847221,191.79,191.71,11.493]
[1738960099924,30.4847221,191.79,191.72,25.2707221]
[1738960099925,25.2707221,191.79,191.72,25.2707221]
[1738960100127,25.2707221,191.79,191.71,36.7637221]
[1738960100526,25.2707221,191.79,191.72,25.2707221]
[1738960101327,25.2707221,191.79,191.73,5.2156]
[1738960102040,25.2707221,191.79,191.73,317.2156]
[1738960102428,30.4836221,191.83,191.75,25.2707221]
[1738960102628,30.4836221,191.83,191.76,25.2707221]
[1738960103030,25.2707221,191.82,191.75,25.2707221]
[1738960103340,25.2707221,191.84,191.77,25.2707221]
[1738960103545,30.4828221,191.86,191.79,25.2707221]
[1738960104245,25.2707221,191.85,191.78,26.8805221]
[1738960104554,25.2707221,191.84,191.78,1.6098]
[1738960104760,25.2707221,191.84,191.78,6.8238]
[1738960105049,25.2707221,191.85,191.78,32.0945221]
[1738960105631,25.2707221,191.85,191.78,344.0945221]
[1738960105950,25.2707221,191.86,191.79,30.4846221]
[1738960106841,0.03,191.87,191.82,25.2707221]
[1738960107041,0.03,191.87,191.85,25.2707221]
[1738960107234,0.03,191.87,191.86,25.2707221]
[1738960107833,0.03,191.87,191.86,30.4828221]
[1738960109251,0.03,191.87,191.86,342.4828221]
[1738960109832,0.03,191.87,191.86,30.4828221]
[1738960111656,0.03,191.87,191.86,60.4828221]
[1738960112449,25.2707221,191.97,191.86,60.4828221]
[1738960112758,25.2707221,191.99,191.92,25.2707221]
[1738960112930,25.2707221,191.98,191.92,25.2707221]
[1738960113134,25.2707221,191.97,191.91,25.2707221]
[1738960113347,25.2707221,191.95,191.89,343.4133221]
[1738960113552,25.2707221,191.94,191.89,318.1426]
[1738960113846,25.2707221,191.95,191.89,318.1426]
[1738960114153,25.2707221,191.96,191.89,343.4133221]
[1738960114657,25.2707221,191.95,191.89,348.6245221]
[1738960115654,25.2707221,191.9,191.87,1.6063]
[1738960116050,25.2707221,191.91,191.87,1.6063]
[1738960116250,25.2707221,191.92,191.87,6.818]
[1738960117632,25.2707221,191.93,191.87,32.0887221]
[1738960117841,30.5104221,191.95,191.88,25.2707221]
[1738960118041,25.2707221,191.94,191.88,25.2707221]
[1738960118352,25.2707221,191.93,191.87,1.6063]
[1738960118653,25.2707221,191.9,191.86,312.063]
[1738960118862,25.2707221,191.87,191.86,0.063]
[1738960120862,25.2707221,191.88,191.86,0.063]
[1738960121047,25.2707221,191.89,191.86,0.063]
[1738960121755,30.4819221,191.9,191.86,0.063]
[1738960122059,25.2707221,191.89,191.86,0.063]
[1738960122236,25.2707221,191.88,191.86,0.063]
[1738960123143,25.2707221,191.89,191.86,0.063]
[1738960123345,25.2707221,191.9,191.86,0.063]
[1738960123741,25.2707221,191.91,191.86,0.063]
[1738960124465,0.03,191.95,191.9,25.2707221]
[1738960124668,0.03,191.95,191.93,25.2707221]
[1738960124854,0.03,191.95,191.92,25.2707221]
[1738960125048,0.03,191.95,191.91,318.4191]
[1738960126760,0.03,191.95,191.91,6.4191]
[1738960127466,25.2707221,191.93,191.88,5.2113]
[1738960127668,25.2707221,191.9,191.86,6.4055]
[1738960128345,25.2707221,191.91,191.86,6.4055]
[1738960128661,25.2707221,191.92,191.86,6.4055]
[1738960129651,25.2707221,191.92,191.86,318.4055]
[1738960129963,30.5104221,191.95,191.88,25.2707221]
[1738960130151,0.03,191.95,191.91,25.2707221]
[1738960130350,0.03,191.95,191.92,25.2707221]
[1738960130552,0.03,191.95,191.94,25.2707221]
[1738960131879,0.03,191.95,191.93,1.5189]
[1738960133263,0.03,191.95,191.93,318.7291]
[1738960134474,25.2707221,191.94,191.87,1.5189]
[1738960134651,25.2707221,191.92,191.87,1.5189]
[1738960134855,25.2707221,191.92,191.87,6.7307]
[1738960135295,25.2707221,191.93,191.87,6.7307]
[1738960135578,0.03,191.95,191.92,25.2707221]
[1738960135781,0.03,191.95,191.94,25.2707221]
[1738960136581,0.03,191.95,191.94,31.26189739]
[1738960136880,0.03,191.95,191.94,30.4806221]
[1738960137452,0.03,191.95,191.94,342.4806221]
[1738960137873,0.03,191.95,191.93,5.21]
[1738960138045,0.03,191.95,191.93,30.4807221]
[1738960139257,0.03,191.95,191.93,5.21]
[1738960139894,0.03,191.95,191.93,30.4807221]
[1738960140188,0.03,191.95,191.93,5.21]
[1738960140373,25.3007221,191.95,191.88,30.4822221]
[1738960140579,25.2707221,191.91,191.86,11.6174]
[1738960140758,0.81131992,191.94,191.86,323.6174]
[1738960140759,25.2707221,191.9,191.86,323.6174]
[1738960141477,25.2707221,191.9,191.86,11.6174]
[1738960141677,25.2707221,191.89,191.86,0.063]
[1738960142282,25.2707221,191.88,191.86,0.063]
[1738960143175,25.2707221,191.89,191.86,0.063]
[1738960145763,5.2109,191.91,191.86,0.063]
[1738960145764,25.2707221,191.93,191.86,25.3337221]
[1738960145976,5.2099,191.94,191.87,25.2707221]
[1738960145977,25.2707221,191.94,191.87,25.2707221]
[1738960146170,25.2707221,191.88,191.86,0.063]
[1738960146969,25.2707221,191.89,191.86,0.063]
[1738960147494,30.4817221,191.9,191.86,0.063]
[1738960148185,25.2707221,191.9,191.86,0.063]
[1738960148389,25.2707221,191.94,191.87,25.2707221]
[1738960148686,25.2707221,191.92,191.86,0.063]
[1738960148887,25.2707221,191.92,191.87,312.0]
[1738960149179,25.2707221,191.92,191.86,5.275]
[1738960149369,30.4812221,191.92,191.86,0.063]
[1738960149557,30.4812221,191.92,191.86,5.275]
[1738960149764,25.2707221,191.91,191.86,5.275]
[1738960149964,25.2707221,191.9,191.86,0.063]
[1738960150197,5.2105,191.92,191.86,0.063]
[1738960150198,25.2707221,191.87,191.86,0.063]
[1738960150775,25.2707221,191.88,191.86,0.063]
[1738960151070,25.2707221,191.92,191.86,0.063]
[1738960151394,25.2707221,191.92,191.86,5.2751]
[1738960152068,30.4809221,191.93,191.86,30.5458221]
[1738960152312,30.4809221,191.93,191.86,342.5458221]
[1738960152604,25.2707221,191.91,191.86,312.063]
[1738960153011,25.2707221,191.91,191.86,317.2751]
[1738960153179,25.2707221,191.93,191.86,342.5458221]
[1738960153794,25.2707221,191.94,191.87,25.2707221]
[1738960154004,25.2707221,191.94,191.88,25.2707221]
[1738960154219,0.03,191.95,191.92,25.2707221]
[1738960154509,0.03,191.93,191.92,25.2707221]
[1738960154981,0.03,191.93,191.91,30.4814221]
[1738960155187,25.3007221,191.93,191.88,1.599]
[1738960155485,25.2707221,191.91,191.86,0.063]
[1738960156389,25.2707221,191.89,191.86,0.063]
[1738960156592,25.2707221,191.9,191.86,0.063]
[1738960156971,25.2707221,191.91,191.86,0.063]
[1738960157193,25.2707221,191.9,191.86,0.063]
[1738960157575,25.2707221,191.87,191.86,0.063]
[1738960158391,30.4825221,191.87,191.86,0.063]
[1738960160688,31.29384202,191.87,191.86,0.063]
[1738960161574,30.4825221,191.87,191.86,0.063]
[1738960164189,31.29384202,191.87,191.86,0.063]
[1738960164794,32.54482202,191.87,191.86,0.0001]
[1738960164990,0.25098,191.83,191.78,0.063]
[1738960165212,25.2707221,191.79,191.78,0.063]
[1738960166296,30.4847221,191.79,191.78,0.063]
[1738960166613,25.2707221,191.79,191.78,0.063]
[1738960168901,31.29604202,191.79,191.78,0.063]
[1738960169606,31.54702202,191.79,191.78,0.063]
[1738960170316,20.0,191.76,191.64,6.0895]
[1738960170525,25.2707221,191.69,191.64,6.0895]
[1738960170691,1.06229992,191.75,191.64,6.0895]
[1738960170692,25.2707221,191.68,191.64,6.0895]
[1738960171042,25.2707221,191.69,191.64,6.0895]
[1738960171195,25.2707221,191.67,191.64,6.0895]
[1738960171389,1.06229992,191.75,191.64,6.0895]
[1738960171390,25.2707221,191.68,191.64,6.0895]
[1738960171584,25.2707221,191.66,191.63,1.5571]
[1738960171900,25.2707221,191.66,191.59,31.8870221]
[1738960171901,25.2707221,191.65,191.59,6.6163]
[1738960172204,25.2707221,191.68,191.61,25.2707221]
[1738960172409,25.2707221,191.65,191.59,6.6163]
[1738960172581,25.2707221,191.68,191.61,25.2707221]
[1738960172786,0.81131992,191.7,191.63,25.2707221]
[1738960172787,25.2707221,191.7,191.63,25.2707221]
[1738960172987,25.2707221,191.69,191.62,25.2707221]
[1738960173311,25.2707221,191.71,191.64,25.2707221]
[1738960173696,25.2707221,191.73,191.66,25.2707221]
[1738960173899,5.2152,191.75,191.61,30.0]
[1738960173900,25.2707221,191.69,191.62,30.4892221]
[1738960174094,25.2707221,191.69,191.62,25.2707221]
[1738960174605,25.2707221,191.7,191.64,25.2707221]
[1738960174809,25.2707221,191.73,191.66,25.2707221]
[1738960175022,25.2707221,191.77,191.7,25.2707221]
[1738960175209,25.2707221,191.79,191.73,25.2707221]
[1738960175419,25.2707221,191.81,191.74,25.2707221]
[1738960175596,2.39411992,191.85,191.76,25.2707221]
[1738960175597,25.2707221,191.82,191.76,25.2707221]
[1738960175796,25.2707221,191.84,191.77,25.2707221]
[1738960176307,25.2707221,191.84,191.76,5.2148]
[1738960176308,25.2707221,191.86,191.79,25.2707221]
[1738960176699,25.2707221,191.85,191.78,25.2707221]
[1738960177009,25.2707221,191.86,191.79,25.2707221]
[1738960177212,25.2707221,191.87,191.8,25.2707221]
[1738960177914,25.2707221,191.83,191.76,25.2707221]
[1738960178119,25.2707221,191.82,191.75,26.7807221]
[1738960178413,25.2707221,191.82,191.78,312.0]
[1738960178913,25.2707221,191.79,191.78,312.0]
[1738960179805,25.2707221,191.81,191.75,1.51]
[1738960180012,25.2707221,191.81,191.75,26.7807221]
[1738960180214,5.2126,191.85,191.75,26.7807221]
[1738960180215,25.2707221,191.8,191.75,1.51]
[1738960180435,25.2707221,191.77,191.7,32.9409221]
[1738960181223,25.2707221,191.77,191.7,7.6702]
[1738960181602,25.2707221,191.78,191.71,25.2707221]
[1738960181996,25.2707221,191.75,191.7,7.6702]
[1738960182198,25.2707221,191.75,191.7,6.1582]
[1738960182412,25.2707221,191.74,191.67,25.2707221]
[1738960182716,25.2707221,191.78,191.71,25.2707221]
[1738960183016,25.2707221,191.74,191.67,25.2707221]
[1738960184399,25.2707221,191.75,191.67,30.4878221]
[1738960184720,25.2707221,191.75,191.67,25.2707221]
[1738960185015,25.2707221,191.74,191.66,25.2707221]
[1738960185600,25.2707221,191.71,191.64,25.3337221]
[1738960186009,25.2707221,191.7,191.64,312.063]
[1738960186212,25.2707221,191.68,191.64,0.063]
[1738960186615,0.81131992,191.73,191.64,0.063]
[1738960186616,25.2707221,191.69,191.64,0.063]
[1738960188224,25.2707221,191.68,191.64,0.063]
[1738960188721,30.4875221,191.69,191.64,0.063]
[1738960188925,25.2707221,191.68,191.64,0.063]
[1738960189229,25.2707221,191.67,191.64,0.063]
[1738960189430,5.2168,191.69,191.64,0.063]
[1738960189431,25.2707221,191.66,191.64,0.063]
[1738960189723,25.2707221,191.65,191.64,0.063]
[1738960190202,30.4885221,191.65,191.64,0.063]
[1738960191217,31.7395021,191.65,191.5,5.2219]
[1738960191419,25.2707221,191.56,191.49,25.2707221]
[1738960191805,0.25098,191.63,191.5,25.2707221]
[1738960191806,25.2707221,191.57,191.5,25.2707221]
[1738960192226,25.2707221,191.57,191.5,337.2707221]
[1738960192412,25.2707221,191.57,191.5,342.4924221]
[1738960192611,25.2707221,191.56,191.5,317.2217]
[1738960193126,25.2707221,191.56,191.5,5.2217]
[1738960193309,25.2707221,191.55,191.47,99.0438221]
[1738960193509,25.2707221,191.55,191.48,25.2707221]
[1738960193707,25.2707221,191.55,191.47,99.0438221]
[1738960194314,25.2707221,191.55,191.48,25.2707221]
[1738960195325,25.2707221,191.55,191.47,68.5506]
[1738960195326,25.2707221,191.53,191.47,68.5506]
[1738960195733,25.2707221,191.58,191.51,25.2707221]
[1738960196037,25.2707221,191.59,191.52,25.2707221]
[1738960196223,25.2707221,191.59,191.52,337.2707221]
[1738960196422,25.2707221,191.58,191.52,317.2212]
[1738960197433,25.2707221,191.57,191.52,317.2212]
[1738960197840,25.2707221,191.58,191.52,317.2212]
[1738960198010,25.2707221,191.59,191.52,342.4919221]
[1738960198208,25.2707221,191.6,191.53,25.2707221]
[1738960198649,25.2707221,191.59,191.52,30.4919221]
[1738960198837,25.2707221,191.57,191.5,25.2707221]
[1738960199145,25.2707221,191.57,191.5,30.4923221]
[1738960199445,25.2707221,191.59,191.52,25.2707221]
[1738960199817,25.2707221,191.58,191.51,25.2707221]
[1738960200909,25.2707221,191.57,191.5,25.2707221]
[1738960201109,25.2707221,191.58,191.52,25.2707221]
[1738960201330,25.2707221,191.58,191.52,312.0]
[1738960201540,25.2707221,191.57,191.52,312.0]
[1738960201941,25.2707221,191.58,191.52,312.0]
[1738960202138,25.2707221,191.6,191.53,25.2707221]
[1738960202454,25.2707221,191.63,191.57,25.2707221]
[1738960202736,25.2707221,191.63,191.52,5.2212]
[1738960202737,25.2707221,191.6,191.53,25.2707221]
[1738960202944,5.2175,191.66,191.56,25.2707221]
[1738960203147,25.2707221,191.61,191.54,25.2707221]
[1738960203811,25.2707221,191.57,191.5,30.5556221]
[1738960204119,5.218,191.65,191.52,30.0]
[1738960204328,6.02801992,191.69,191.53,0.78286253]
[1738960204528,6.02801992,191.69,191.54,30.0]
[1738960204728,0.81131992,191.68,191.55,7.6856]
[1738960204959,5.2167,191.69,191.55,7.6856]
[1738960205161,25.2707221,191.64,191.57,25.2707221]
[1738960205354,25.2707221,191.65,191.59,312.0]
[1738960205866,25.2707221,191.64,191.59,312.0]
[1738960206065,25.2707221,191.63,191.59,312.0]
[1738960206243,25.2707221,191.62,191.56,5.2202]
[1738960207583,25.2707221,191.64,191.57,25.2707221]
[1738960208176,25.2707221,191.62,191.56,5.2202]
[1738960208367,25.2707221,191.61,191.55,7.6856]
[1738960208743,25.2707221,191.58,191.52,5.2211]
[1738960208961,25.2707221,191.54,191.5,5.2848]
[1738960209171,25.2707221,191.54,191.5,0.063]
[1738960209444,25.2707221,191.55,191.5,0.063]
[1738960209645,25.2707221,191.56,191.5,0.063]
[1738960210167,25.2707221,191.54,191.5,0.063]
[1738960210377,25.2707221,191.52,191.5,0.063]
[1738960210676,25.2707221,191.51,191.5,0.063]
[1738960210987,25.2707221,191.53,191.5,0.063]
[1738960211287,25.5217021,191.51,191.39,6.1436]
[1738960211576,25.2707221,191.44,191.39,6.1436]